[Event "Early-Titled-Tuesday-Blitz-February-13-2024"]
[Site "Chess.com"]
[Date "2024.02.13"]
[Round "4"]
[White "GianmarcoVaR"]
[Black "AryanTari"]
[Result "0-1"]
[WhiteElo "2715"]
[BlackElo "2933"]
[TimeControl "180+1"]
[EndTime "8:43:11 PST"]
[Termination "AryanTari won on time"]

1. e4 {[%clk 0:03:00.9]} 1... e5 {[%clk 0:02:51.6]} 2. Nf3 {[%clk 0:03:00.9]}
2... Nc6 {[%clk 0:02:50.8]} 3. Bc4 {[%clk 0:03:01.6]} 3... Nf6 {[%clk
0:02:49.6]} 4. d3 {[%clk 0:03:01.8]} 4... Bc5 {[%clk 0:02:38.5]} 5. O-O {[%clk
0:03:01.8]} 5... d6 {[%clk 0:02:39]} 6. c3 {[%clk 0:03:00.6]} 6... a5 {[%clk
0:02:38.1]} 7. Nbd2 {[%clk 0:02:55.7]} 7... O-O {[%clk 0:02:36.4]} 8. h3 {[%clk
0:02:53.9]} 8... h6 {[%clk 0:02:35.9]} 9. Re1 {[%clk 0:02:53.7]} 9... Be6 {[%clk
0:02:35.6]} 10. Bb5 {[%clk 0:02:33.1]} 10... Bb6 {[%clk 0:02:34.4]} 11. Nc4
{[%clk 0:02:26.5]} 11... Bc5 {[%clk 0:02:34.2]} 12. Ncd2 {[%clk 0:02:18.9]}
12... Bb6 {[%clk 0:02:34.1]} 13. Nf1 {[%clk 0:01:54.7]} 13... Ne7 {[%clk
0:02:33.7]} 14. d4 {[%clk 0:01:49.8]} 14... exd4 {[%clk 0:02:33]} 15. cxd4
{[%clk 0:01:50.7]} 15... d5 {[%clk 0:02:33.3]} 16. e5 {[%clk 0:01:46.3]} 16...
Ne4 {[%clk 0:02:33.4]} 17. Be3 {[%clk 0:01:38.2]} 17... Nf5 {[%clk 0:02:28.4]}
18. Rc1 {[%clk 0:01:33.8]} 18... c6 {[%clk 0:02:27.7]} 19. Bd3 {[%clk
0:01:34.1]} 19... f6 {[%clk 0:02:26.5]} 20. N1d2 {[%clk 0:01:28.6]} 20... Nxd2
{[%clk 0:02:13.1]} 21. Qxd2 {[%clk 0:01:27.5]} 21... fxe5 {[%clk 0:02:02.3]} 22.
Bxf5 {[%clk 0:01:21.2]} 22... Bxf5 {[%clk 0:01:59]} 23. dxe5 {[%clk 0:01:21.8]}
23... Bxh3 {[%clk 0:01:55.8]} 24. e6 {[%clk 0:01:01]} 24... Rxf3 {[%clk
0:01:48.2]} 25. Bxb6 {[%clk 0:00:43.8]} 25... Qxb6 {[%clk 0:01:49.1]} 26. gxf3
{[%clk 0:00:43.2]} 26... Re8 {[%clk 0:01:48.8]} 27. e7 {[%clk 0:00:32.6]} 27...
Qb4 {[%clk 0:01:23.3]} 28. Qxb4 {[%clk 0:00:20.3]} 28... axb4 {[%clk 0:01:24.2]}
29. a3 {[%clk 0:00:17.4]} 29... bxa3 {[%clk 0:01:11.6]} 30. bxa3 {[%clk
0:00:18.3]} 30... Kf7 {[%clk 0:01:12]} 31. Rb1 {[%clk 0:00:08.9]} 31... b5
{[%clk 0:01:12.1]} 32. a4 {[%clk 0:00:08]} 32... bxa4 {[%clk 0:01:10.1]} 33. Rb4
{[%clk 0:00:08.4]} 33... Rxe7 {[%clk 0:01:06.4]} 34. Rf4+ {[%clk 0:00:06.3]}
34... Ke8 {[%clk 0:01:06.3]} 35. Ra1 {[%clk 0:00:06.8]} 35... Ra7 {[%clk
0:01:01.6]} 36. Rh4 {[%clk 0:00:05.9]} 36... Bf5 {[%clk 0:01:00.4]} 37. Rhxa4
{[%clk 0:00:06.8]} 37... Rxa4 {[%clk 0:01:00]} 38. Rxa4 {[%clk 0:00:07.5]} 38...
h5 {[%clk 0:00:57]} 39. Ra7 {[%clk 0:00:04.6]} 39... g6 {[%clk 0:00:56.2]} 40.
Kf1 {[%clk 0:00:02.2]} 40... h4 {[%clk 0:00:55.5]} 41. Ke2 {[%clk 0:00:01.7]}
41... h3 {[%clk 0:00:55.7]} 42. Ke3 {[%clk 0:00:01.7]} 42... c5 {[%clk
0:00:52.7]} 43. Kf4 {[%clk 0:00:01.7]} 43... d4 {[%clk 0:00:48.9]} 44. Kg3
{[%clk 0:00:01.7]} 44... c4 {[%clk 0:00:48.1]} 45. Ra4 {[%clk 0:00:01.3]} 45...
Be6 {[%clk 0:00:44.9]} 46. Ra6 {[%clk 0:00:01.7]} 46... Kd7 {[%clk 0:00:43.2]}
47. Ra7+ {[%clk 0:00:01.9]} 47... Kd6 {[%clk 0:00:43.8]} 48. Ra6+ {[%clk
0:00:02.6]} 48... Ke5 {[%clk 0:00:35.5]} 49. f4+ {[%clk 0:00:03.1]} 49... Kf6
{[%clk 0:00:35.9]} 50. Rd6 {[%clk 0:00:03.3]} 50... c3 {[%clk 0:00:34.2]} 51.
Rc6 {[%clk 0:00:01.9]} 51... Ke7 {[%clk 0:00:33.3]} 52. f3 {[%clk 0:00:01.7]}
52... Kd7 {[%clk 0:00:33.3]} 53. Rc5 {[%clk 0:00:01.1]} 53... Kd6 {[%clk
0:00:33.4]} 0-1

[Event "Early-Titled-Tuesday-Blitz-February-13-2024"]
[Site "Chess.com"]
[Date "2024.02.13"]
[Round "4"]
[White "yaguigor"]
[Black "Ron_Weasley_Chess"]
[Result "0-1"]
[WhiteElo "2682"]
[BlackElo "2450"]
[TimeControl "180+1"]
[EndTime "8:43:13 PST"]
[Termination "Ron_Weasley_Chess won by resignation"]

1. d4 {[%clk 0:03:00.9]} 1... Nf6 {[%clk 0:02:58.3]} 2. c4 {[%clk 0:02:59.9]}
2... c5 {[%clk 0:02:56.9]} 3. d5 {[%clk 0:02:59.4]} 3... b5 {[%clk 0:02:56.5]}
4. cxb5 {[%clk 0:02:59.2]} 4... a6 {[%clk 0:02:57]} 5. bxa6 {[%clk 0:02:59.3]}
5... g6 {[%clk 0:02:57.2]} 6. Nc3 {[%clk 0:02:58.4]} 6... Bg7 {[%clk 0:02:57.4]}
7. e4 {[%clk 0:02:58.9]} 7... O-O {[%clk 0:02:57.7]} 8. Nf3 {[%clk 0:02:55.6]}
8... Qa5 {[%clk 0:02:57.4]} 9. a7 {[%clk 0:02:48.1]} 9... Nxe4 {[%clk
0:02:17.4]} 10. axb8=Q {[%clk 0:02:33.5]} 10... Rxb8 {[%clk 0:01:38.7]} 11. Bd2
{[%clk 0:02:32]} 11... Nxd2 {[%clk 0:01:34.8]} 12. Nxd2 {[%clk 0:02:29.6]} 12...
Rxb2 {[%clk 0:01:32.6]} 13. Ne2 {[%clk 0:02:01]} 13... c4 {[%clk 0:01:03.2]} 14.
Rc1 {[%clk 0:01:35.5]} 14... c3 {[%clk 0:00:55.8]} 15. Nc4 {[%clk 0:01:31.8]}
15... Qb4 {[%clk 0:00:40.8]} 16. Nd4 {[%clk 0:01:16.1]} 16... Rxa2 {[%clk
0:00:11.4]} 17. Qb3 {[%clk 0:01:05.5]} 17... Qc5 {[%clk 0:00:11.6]} 18. Qxa2
{[%clk 0:01:01.6]} 18... Bxd4 {[%clk 0:00:10.1]} 19. Bd3 {[%clk 0:00:57.8]}
19... Qxd5 {[%clk 0:00:06.8]} 20. f3 {[%clk 0:00:42.1]} 20... Bb7 {[%clk
0:00:06.6]} 21. Qe2 {[%clk 0:00:37.4]} 21... Rc8 {[%clk 0:00:04.8]} 22. h4
{[%clk 0:00:31.7]} 22... Ba6 {[%clk 0:00:05.3]} 23. Qe4 {[%clk 0:00:23]} 23...
Bxc4 {[%clk 0:00:04.5]} 24. Qxd5 {[%clk 0:00:21.8]} 24... Bxd5 {[%clk
0:00:05.4]} 25. Ke2 {[%clk 0:00:21.8]} 25... Bf6 {[%clk 0:00:03.6]} 26. h5
{[%clk 0:00:20.4]} 26... Rb8 {[%clk 0:00:04]} 27. Rb1 {[%clk 0:00:19.6]} 27...
Rb2+ {[%clk 0:00:04.2]} 28. Rxb2 {[%clk 0:00:19.8]} 28... cxb2 {[%clk
0:00:05.1]} 29. hxg6 {[%clk 0:00:18.8]} 29... hxg6 {[%clk 0:00:06]} 30. Be4
{[%clk 0:00:17.5]} 30... Bxe4 {[%clk 0:00:05]} 31. fxe4 {[%clk 0:00:17.4]} 31...
d6 {[%clk 0:00:05.9]} 32. g4 {[%clk 0:00:16.9]} 32... Be5 {[%clk 0:00:06.3]} 33.
Kd3 {[%clk 0:00:16.7]} 33... Kg7 {[%clk 0:00:04.7]} 34. Ke3 {[%clk 0:00:12.2]}
34... Kf6 {[%clk 0:00:03.6]} 35. Kf3 {[%clk 0:00:10.7]} 35... Kg5 {[%clk
0:00:03.6]} 36. Rf1 {[%clk 0:00:09]} 36... Bf4 {[%clk 0:00:04]} 37. Rb1 {[%clk
0:00:06.5]} 37... Bc1 {[%clk 0:00:04.7]} 38. Kg3 {[%clk 0:00:05.9]} 38... e5
{[%clk 0:00:05.3]} 39. Kf3 {[%clk 0:00:05.3]} 39... Kh4 {[%clk 0:00:05.9]} 0-1

[Event "Early-Titled-Tuesday-Blitz-February-13-2024"]
[Site "Chess.com"]
[Date "2024.02.13"]
[Round "4"]
[White "Barmen_EV"]
[Black "arctic_t00"]
[Result "0-1"]
[WhiteElo "2498"]
[BlackElo "2705"]
[TimeControl "180+1"]
[EndTime "8:43:15 PST"]
[Termination "arctic_t00 won by checkmate"]

1. e4 {[%clk 0:03:00.9]} 1... e6 {[%clk 0:02:59.9]} 2. d4 {[%clk 0:03:00.4]}
2... d5 {[%clk 0:03:00.6]} 3. Nd2 {[%clk 0:03:00.7]} 3... c5 {[%clk 0:03:00.3]}
4. c3 {[%clk 0:03:01.1]} 4... a6 {[%clk 0:02:59.6]} 5. Ngf3 {[%clk 0:02:59.9]}
5... Nc6 {[%clk 0:02:59.6]} 6. Bd3 {[%clk 0:02:57.3]} 6... cxd4 {[%clk
0:02:53.4]} 7. cxd4 {[%clk 0:02:58.2]} 7... dxe4 {[%clk 0:02:53.5]} 8. Nxe4
{[%clk 0:02:59.1]} 8... Bb4+ {[%clk 0:02:53.5]} 9. Nc3 {[%clk 0:02:59.4]} 9...
Nf6 {[%clk 0:02:52.8]} 10. O-O {[%clk 0:02:59.5]} 10... O-O {[%clk 0:02:52.3]}
11. Re1 {[%clk 0:03:00]} 11... b5 {[%clk 0:02:38.2]} 12. Bb1 {[%clk 0:02:58.5]}
12... Bb7 {[%clk 0:02:34.4]} 13. a3 {[%clk 0:02:57.7]} 13... Be7 {[%clk
0:02:29.8]} 14. Qd3 {[%clk 0:02:55.8]} 14... g6 {[%clk 0:02:29.8]} 15. Bh6
{[%clk 0:02:54]} 15... Re8 {[%clk 0:02:30.1]} 16. Ba2 {[%clk 0:02:54.7]} 16...
b4 {[%clk 0:02:22.6]} 17. Ne4 {[%clk 0:01:43.8]} 17... Nxe4 {[%clk 0:01:49.7]}
18. Qxe4 {[%clk 0:01:44.7]} 18... b3 {[%clk 0:01:33.1]} 19. Bb1 {[%clk
0:01:37.8]} 19... Bf6 {[%clk 0:01:28.9]} 20. Ne5 {[%clk 0:01:22.8]} 20... Nxe5
{[%clk 0:01:18.8]} 21. Qxb7 {[%clk 0:01:22]} 21... Qxd4 {[%clk 0:01:17.7]} 22.
Be4 {[%clk 0:01:09.8]} 22... Rab8 {[%clk 0:01:12.7]} 23. Qxa6 {[%clk 0:01:01.1]}
23... Ng4 {[%clk 0:01:11.6]} 24. Be3 {[%clk 0:00:38.3]} 24... Qxe4 {[%clk
0:01:07.7]} 25. f3 {[%clk 0:00:36.4]} 25... Qxe3+ {[%clk 0:01:05.5]} 26. Rxe3
{[%clk 0:00:36.3]} 26... Nxe3 {[%clk 0:01:06.4]} 27. Qe2 {[%clk 0:00:30.6]}
27... Nc2 {[%clk 0:01:05]} 28. Rb1 {[%clk 0:00:31.5]} 28... Bd4+ {[%clk
0:01:01.7]} 29. Kh1 {[%clk 0:00:31.2]} 29... e5 {[%clk 0:01:01.9]} 30. a4 {[%clk
0:00:31]} 30... Rb4 {[%clk 0:00:57.5]} 31. a5 {[%clk 0:00:31]} 31... Ra8 {[%clk
0:00:55.1]} 32. a6 {[%clk 0:00:17.7]} 32... Kg7 {[%clk 0:00:53.6]} 33. f4 {[%clk
0:00:18.2]} 33... exf4 {[%clk 0:00:49.2]} 34. Rf1 {[%clk 0:00:17.2]} 34... Bxb2
{[%clk 0:00:42.1]} 35. Rb1 {[%clk 0:00:16.3]} 35... Bf6 {[%clk 0:00:39.5]} 36.
h3 {[%clk 0:00:08.7]} 36... Nd4 {[%clk 0:00:36.5]} 37. Qd3 {[%clk 0:00:08.9]}
37... b2 {[%clk 0:00:35.4]} 38. Qd2 {[%clk 0:00:09.5]} 38... Nc6 {[%clk
0:00:25.9]} 39. Qd3 {[%clk 0:00:04.5]} 39... Ra4 {[%clk 0:00:25.7]} 40. Qb5
{[%clk 0:00:03.8]} 40... R8xa6 {[%clk 0:00:25.6]} 41. h4 {[%clk 0:00:03.7]}
41... Ra1 {[%clk 0:00:25.5]} 42. Qd3 {[%clk 0:00:03.5]} 42... Rxb1+ {[%clk
0:00:25.3]} 43. Qxb1 {[%clk 0:00:04.4]} 43... Ra1 {[%clk 0:00:25.8]} 44. Kh2
{[%clk 0:00:05.3]} 44... Rxb1 {[%clk 0:00:26]} 45. h5 {[%clk 0:00:06.2]} 45...
Rc1 {[%clk 0:00:26]} 46. h6+ {[%clk 0:00:06]} 46... Kxh6 {[%clk 0:00:26.2]} 47.
g4 {[%clk 0:00:06.9]} 47... b1=Q {[%clk 0:00:24]} 48. Kg2 {[%clk 0:00:07.3]}
48... Rg1+ {[%clk 0:00:23.9]} 49. Kf3 {[%clk 0:00:08.2]} 49... Qd1+ {[%clk
0:00:23.7]} 50. Ke4 {[%clk 0:00:09.1]} 50... Qd4+ {[%clk 0:00:23.1]} 51. Kf3
{[%clk 0:00:09.5]} 51... Qe3# {[%clk 0:00:23.4]} 0-1

[Event "Early-Titled-Tuesday-Blitz-February-13-2024"]
[Site "Chess.com"]
[Date "2024.02.13"]
[Round "4"]
[White "IMRosen"]
[Black "AsaHoffmann"]
[Result "1-0"]
[WhiteElo "2677"]
[BlackElo "2428"]
[TimeControl "180+1"]
[EndTime "8:43:16 PST"]
[Termination "IMRosen won on time"]

1. e4 {[%clk 0:02:58.1]} 1... d6 {[%clk 0:02:58.7]} 2. d4 {[%clk 0:02:57]} 2...
c6 {[%clk 0:02:58.6]} 3. Nc3 {[%clk 0:02:56.5]} 3... a6 {[%clk 0:02:57.4]} 4. a4
{[%clk 0:02:55.5]} 4... Nf6 {[%clk 0:02:55.6]} 5. Nge2 {[%clk 0:02:54.6]} 5...
e5 {[%clk 0:02:55.2]} 6. g3 {[%clk 0:02:53.2]} 6... Qc7 {[%clk 0:02:54.6]} 7.
Bg2 {[%clk 0:02:53.5]} 7... Be7 {[%clk 0:02:54.3]} 8. h3 {[%clk 0:02:53.4]} 8...
O-O {[%clk 0:02:53.8]} 9. Be3 {[%clk 0:02:50.6]} 9... Nbd7 {[%clk 0:02:47.9]}
10. O-O {[%clk 0:02:48.1]} 10... a5 {[%clk 0:02:46]} 11. Qd2 {[%clk 0:02:47.1]}
11... Re8 {[%clk 0:02:44.7]} 12. g4 {[%clk 0:02:46]} 12... Nf8 {[%clk
0:02:36.1]} 13. f4 {[%clk 0:02:40.1]} 13... exf4 {[%clk 0:02:29.7]} 14. Nxf4
{[%clk 0:02:32.4]} 14... Ng6 {[%clk 0:02:28.7]} 15. Nxg6 {[%clk 0:02:21.6]}
15... hxg6 {[%clk 0:02:26.5]} 16. Rae1 {[%clk 0:02:22.1]} 16... Bf8 {[%clk
0:02:23.1]} 17. Bf4 {[%clk 0:02:22]} 17... Qb6 {[%clk 0:02:22]} 18. b3 {[%clk
0:02:21.5]} 18... Bd7 {[%clk 0:02:09.5]} 19. Kh1 {[%clk 0:02:20.3]} 19... Rad8
{[%clk 0:01:57.8]} 20. Qf2 {[%clk 0:02:20.3]} 20... Be6 {[%clk 0:01:46.7]} 21.
Be3 {[%clk 0:02:18.3]} 21... Qb4 {[%clk 0:01:43.7]} 22. Na2 {[%clk 0:02:05]}
22... Qa3 {[%clk 0:01:32.8]} 23. Ra1 {[%clk 0:02:05]} 23... d5 {[%clk
0:01:26.3]} 24. Nc3 {[%clk 0:01:05.5]} 24... Qb4 {[%clk 0:01:20.7]} 25. Bd2
{[%clk 0:01:06]} 25... Qe7 {[%clk 0:01:15.9]} 26. Bg5 {[%clk 0:00:56.9]} 26...
Qb4 {[%clk 0:01:08.1]} 27. Na2 {[%clk 0:00:54.2]} 27... Qb6 {[%clk 0:01:01.7]}
28. e5 {[%clk 0:00:52.4]} 28... Ne4 {[%clk 0:01:00.6]} 29. Bxe4 {[%clk
0:00:52.1]} 29... dxe4 {[%clk 0:00:59.5]} 30. Bxd8 {[%clk 0:00:52.3]} 30... Rxd8
{[%clk 0:00:58.6]} 31. Rad1 {[%clk 0:00:43.9]} 31... Qc7 {[%clk 0:00:43.5]} 32.
c4 {[%clk 0:00:35.3]} 32... b5 {[%clk 0:00:38.3]} 33. axb5 {[%clk 0:00:34.3]}
33... cxb5 {[%clk 0:00:38.2]} 34. d5 {[%clk 0:00:35]} 34... Bc8 {[%clk
0:00:36.9]} 35. Qf4 {[%clk 0:00:22.1]} 35... bxc4 {[%clk 0:00:33.7]} 36. bxc4
{[%clk 0:00:23]} 36... f6 {[%clk 0:00:25.5]} 37. Qxe4 {[%clk 0:00:19.5]} 37...
fxe5 {[%clk 0:00:21.6]} 38. Nc3 {[%clk 0:00:19.5]} 38... Ba6 {[%clk 0:00:18.2]}
39. Nb5 {[%clk 0:00:19.1]} 39... Qc5 {[%clk 0:00:16.6]} 40. Rd2 {[%clk
0:00:14.5]} 40... a4 {[%clk 0:00:14.3]} 41. Rdf2 {[%clk 0:00:14.3]} 41... Bxb5
{[%clk 0:00:12.2]} 42. cxb5 {[%clk 0:00:14.4]} 42... Qxb5 {[%clk 0:00:12.2]} 43.
Qxe5 {[%clk 0:00:09.9]} 43... a3 {[%clk 0:00:07.6]} 44. Qe6+ {[%clk 0:00:09.7]}
44... Kh7 {[%clk 0:00:07.1]} 45. Rxf8 {[%clk 0:00:10]} 45... Rxf8 {[%clk
0:00:06.1]} 46. Rxf8 {[%clk 0:00:10.7]} 46... Qb1+ {[%clk 0:00:04.2]} 47. Kg2
{[%clk 0:00:09.8]} 47... Qc2+ {[%clk 0:00:02.3]} 48. Rf2 {[%clk 0:00:09.2]} 1-0

[Event "Early-Titled-Tuesday-Blitz-February-13-2024"]
[Site "Chess.com"]
[Date "2024.02.13"]
[Round "4"]
[White "FARIZA2018"]
[Black "GoValya"]
[Result "1-0"]
[WhiteElo "2515"]
[BlackElo "2286"]
[TimeControl "180+1"]
[EndTime "8:43:16 PST"]
[Termination "FARIZA2018 won on time"]

1. e4 {[%clk 0:03:00.9]} 1... e6 {[%clk 0:02:55.8]} 2. d4 {[%clk 0:03:00.8]}
2... d5 {[%clk 0:02:54.1]} 3. Nd2 {[%clk 0:03:00.1]} 3... c5 {[%clk 0:02:52.9]}
4. exd5 {[%clk 0:02:59.8]} 4... exd5 {[%clk 0:02:52.5]} 5. Ngf3 {[%clk
0:02:59.7]} 5... Nc6 {[%clk 0:02:51.8]} 6. Bb5 {[%clk 0:02:59.1]} 6... Nf6
{[%clk 0:02:48.7]} 7. O-O {[%clk 0:02:57.9]} 7... Be7 {[%clk 0:02:49]} 8. dxc5
{[%clk 0:02:57]} 8... O-O {[%clk 0:02:48.8]} 9. Nb3 {[%clk 0:02:53.3]} 9... Bg4
{[%clk 0:02:40.6]} 10. Be2 {[%clk 0:02:51.3]} 10... a5 {[%clk 0:02:39.3]} 11. a4
{[%clk 0:02:49.3]} 11... Ne4 {[%clk 0:02:34.5]} 12. Be3 {[%clk 0:02:47.6]} 12...
Bf6 {[%clk 0:02:08.7]} 13. c3 {[%clk 0:02:47]} 13... Re8 {[%clk 0:02:03.8]} 14.
h3 {[%clk 0:02:33.8]} 14... Bh5 {[%clk 0:01:56.5]} 15. Nfd4 {[%clk 0:02:14.3]}
15... Bxe2 {[%clk 0:01:41.8]} 16. Nxe2 {[%clk 0:01:51]} 16... Bg5 {[%clk
0:01:19.1]} 17. Nf4 {[%clk 0:01:35.8]} 17... Bxf4 {[%clk 0:01:08.9]} 18. Bxf4
{[%clk 0:01:35.5]} 18... Qf6 {[%clk 0:01:07.2]} 19. Be3 {[%clk 0:01:32.9]} 19...
Rad8 {[%clk 0:01:00.2]} 20. Qh5 {[%clk 0:00:49.2]} 20... Re5 {[%clk 0:00:51.8]}
21. Qg4 {[%clk 0:00:46.8]} 21... h5 {[%clk 0:00:30.2]} 22. Qe2 {[%clk
0:00:40.3]} 22... Qe7 {[%clk 0:00:19.9]} 23. Rad1 {[%clk 0:00:37.9]} 23... Ng3
{[%clk 0:00:18.5]} 24. fxg3 {[%clk 0:00:36.7]} 24... Rxe3 {[%clk 0:00:19.1]} 25.
Qf2 {[%clk 0:00:35.9]} 25... Re2 {[%clk 0:00:19]} 26. Qf3 {[%clk 0:00:31.8]}
26... Rxb2 {[%clk 0:00:18.8]} 27. Nd4 {[%clk 0:00:29.9]} 27... Ne5 {[%clk
0:00:17.8]} 28. Qxh5 {[%clk 0:00:26.5]} 28... Nc4 {[%clk 0:00:14.7]} 29. Rde1
{[%clk 0:00:23.5]} 29... Qc7 {[%clk 0:00:13.3]} 30. Qg5 {[%clk 0:00:14.9]} 30...
Rf8 {[%clk 0:00:12.7]} 31. Kh2 {[%clk 0:00:14.2]} 31... g6 {[%clk 0:00:08.7]}
32. Re7 {[%clk 0:00:09.3]} 32... Qb8 {[%clk 0:00:06.4]} 33. Rfxf7 {[%clk
0:00:09.3]} 33... Rxf7 {[%clk 0:00:04.1]} 34. Qxg6+ {[%clk 0:00:09.6]} 34... Kh8
{[%clk 0:00:04.6]} 35. Rxf7 {[%clk 0:00:09.1]} 35... Rxg2+ {[%clk 0:00:04.2]}
36. Kxg2 {[%clk 0:00:08]} 36... Ne3+ {[%clk 0:00:04.3]} 37. Kf3 {[%clk
0:00:08.3]} 1-0

[Event "Early-Titled-Tuesday-Blitz-February-13-2024"]
[Site "Chess.com"]
[Date "2024.02.13"]
[Round "4"]
[White "sewlins"]
[Black "Viktor_Poddubnyi"]
[Result "1-0"]
[WhiteElo "2117"]
[BlackElo "2274"]
[TimeControl "180+1"]
[EndTime "8:43:17 PST"]
[Termination "sewlins won on time"]

1. Nf3 {[%clk 0:03:00.9]} 1... g6 {[%clk 0:03:00.6]} 2. e4 {[%clk 0:02:59.9]}
2... Bg7 {[%clk 0:03:01.2]} 3. d4 {[%clk 0:03:00.1]} 3... d6 {[%clk 0:03:00.7]}
4. Nc3 {[%clk 0:02:59.8]} 4... c6 {[%clk 0:02:59.4]} 5. a4 {[%clk 0:02:50.8]}
5... Nf6 {[%clk 0:02:59.8]} 6. Bc4 {[%clk 0:02:50.5]} 6... d5 {[%clk 0:02:52.9]}
7. exd5 {[%clk 0:02:48.3]} 7... cxd5 {[%clk 0:02:53.8]} 8. Bb5+ {[%clk
0:02:41.7]} 8... Bd7 {[%clk 0:02:53]} 9. O-O {[%clk 0:02:38.7]} 9... O-O {[%clk
0:02:52.2]} 10. Ne5 {[%clk 0:02:36.2]} 10... a6 {[%clk 0:02:45.2]} 11. Be2
{[%clk 0:02:33.8]} 11... Nc6 {[%clk 0:02:44.4]} 12. Bf3 {[%clk 0:02:30.6]} 12...
e6 {[%clk 0:02:21.8]} 13. Bf4 {[%clk 0:01:54.5]} 13... Rc8 {[%clk 0:02:15.5]}
14. a5 {[%clk 0:01:48.4]} 14... Nxa5 {[%clk 0:02:07.7]} 15. h4 {[%clk
0:01:38.7]} 15... h5 {[%clk 0:01:44.3]} 16. Bg5 {[%clk 0:01:21.2]} 16... Nc4
{[%clk 0:01:40.3]} 17. Ne2 {[%clk 0:00:57.9]} 17... Qc7 {[%clk 0:01:11.9]} 18.
Nd3 {[%clk 0:00:47.8]} 18... Ne4 {[%clk 0:00:58.9]} 19. Bf4 {[%clk 0:00:43.6]}
19... Qb6 {[%clk 0:00:59.4]} 20. b3 {[%clk 0:00:41.8]} 20... Ncd6 {[%clk
0:00:58.2]} 21. g4 {[%clk 0:00:26.4]} 21... hxg4 {[%clk 0:00:51]} 22. Bxg4
{[%clk 0:00:27.3]} 22... Nf5 {[%clk 0:00:50.2]} 23. Bxf5 {[%clk 0:00:18.1]}
23... exf5 {[%clk 0:00:45.4]} 24. Kg2 {[%clk 0:00:14]} 24... Qc6 {[%clk
0:00:30.3]} 25. Rc1 {[%clk 0:00:12.5]} 25... Nc3 {[%clk 0:00:25.3]} 26. Nxc3
{[%clk 0:00:12.3]} 26... Qxc3 {[%clk 0:00:26.2]} 27. Ne5 {[%clk 0:00:12.7]}
27... Bb5 {[%clk 0:00:19.5]} 28. Rh1 {[%clk 0:00:13.2]} 28... Rce8 {[%clk
0:00:11.9]} 29. h5 {[%clk 0:00:13.5]} 29... Re6 {[%clk 0:00:07.3]} 30. hxg6
{[%clk 0:00:13.5]} 30... fxg6 {[%clk 0:00:08.2]} 31. Rh3 {[%clk 0:00:12.5]}
31... Qc8 {[%clk 0:00:07.4]} 32. Qh1 {[%clk 0:00:13]} 32... Be2 {[%clk
0:00:04.8]} 33. Rg3 {[%clk 0:00:12.8]} 33... Bh5 {[%clk 0:00:03.9]} 34. Rg5
{[%clk 0:00:11.4]} 34... Qd8 {[%clk 0:00:02.1]} 35. Qh4 {[%clk 0:00:10.9]} 35...
Qf6 {[%clk 0:00:02.2]} 36. Qg3 {[%clk 0:00:10.6]} 36... Rfe8 {[%clk 0:00:01.5]}
37. Rh1 {[%clk 0:00:11.2]} 37... Kf8 {[%clk 0:00:01.2]} 38. c4 {[%clk
0:00:09.7]} 38... dxc4 {[%clk 0:00:01.1]} 39. bxc4 {[%clk 0:00:10.6]} 1-0

[Event "Early-Titled-Tuesday-Blitz-February-13-2024"]
[Site "Chess.com"]
[Date "2024.02.13"]
[Round "4"]
[White "blank0923"]
[Black "Radzio1987"]
[Result "0-1"]
[WhiteElo "2605"]
[BlackElo "2902"]
[TimeControl "180+1"]
[EndTime "8:43:18 PST"]
[Termination "Radzio1987 won by resignation"]

1. Nf3 {[%clk 0:02:59.7]} 1... c5 {[%clk 0:02:58]} 2. e4 {[%clk 0:02:59.3]} 2...
e6 {[%clk 0:02:56]} 3. g3 {[%clk 0:02:59.3]} 3... Nc6 {[%clk 0:02:52.1]} 4. Bg2
{[%clk 0:02:59.4]} 4... Nf6 {[%clk 0:02:51.9]} 5. d3 {[%clk 0:02:58.7]} 5... d5
{[%clk 0:02:45.9]} 6. Nbd2 {[%clk 0:02:58.1]} 6... Bd6 {[%clk 0:02:44.7]} 7. O-O
{[%clk 0:02:56.1]} 7... O-O {[%clk 0:02:42.8]} 8. Re1 {[%clk 0:02:52.6]} 8...
Bc7 {[%clk 0:02:42.3]} 9. Qe2 {[%clk 0:02:46.1]} 9... b5 {[%clk 0:02:41.3]} 10.
e5 {[%clk 0:02:31.1]} 10... Nd7 {[%clk 0:02:36.5]} 11. Nb3 {[%clk 0:02:09.4]}
11... Ndxe5 {[%clk 0:02:15.4]} 12. Nxe5 {[%clk 0:02:08.6]} 12... Nxe5 {[%clk
0:02:16.3]} 13. Nxc5 {[%clk 0:02:07.3]} 13... Nc6 {[%clk 0:02:16.4]} 14. c3
{[%clk 0:01:35.9]} 14... Bd6 {[%clk 0:02:02]} 15. d4 {[%clk 0:01:26]} 15... b4
{[%clk 0:02:01.9]} 16. h4 {[%clk 0:00:59.3]} 16... bxc3 {[%clk 0:01:54.4]} 17.
bxc3 {[%clk 0:01:00.2]} 17... Qa5 {[%clk 0:01:54.4]} 18. Nb3 {[%clk 0:00:52.6]}
18... Qa6 {[%clk 0:01:35.7]} 19. Qd1 {[%clk 0:00:35.6]} 19... Na5 {[%clk
0:01:21.4]} 20. Rb1 {[%clk 0:00:18.3]} 20... Nc4 {[%clk 0:01:10.8]} 21. Qe2
{[%clk 0:00:18.9]} 21... Nb6 {[%clk 0:01:01.3]} 22. Qc2 {[%clk 0:00:09]} 22...
Bd7 {[%clk 0:00:55.9]} 23. h5 {[%clk 0:00:09.1]} 23... Rfc8 {[%clk 0:00:48.6]}
24. h6 {[%clk 0:00:09.1]} 24... g6 {[%clk 0:00:49]} 25. Bf1 {[%clk 0:00:05]}
25... Qa4 {[%clk 0:00:45.2]} 26. Bg5 {[%clk 0:00:02.1]} 26... Bf8 {[%clk
0:00:37.1]} 27. Qe2 {[%clk 0:00:01.8]} 27... Rxc3 {[%clk 0:00:25.5]} 28. Nc5
{[%clk 0:00:01.8]} 28... Qxd4 {[%clk 0:00:20.4]} 29. Nb7 {[%clk 0:00:01.2]}
29... Rac8 {[%clk 0:00:18.4]} 30. Na5 {[%clk 0:00:01.1]} 30... Rc2 {[%clk
0:00:18.4]} 31. Qf3 {[%clk 0:00:01.3]} 31... Rxa2 {[%clk 0:00:17]} 32. Re3
{[%clk 0:00:01.5]} 32... Rxa5 {[%clk 0:00:16.4]} 33. Rd1 {[%clk 0:00:02]} 33...
Qh8 {[%clk 0:00:16.1]} 34. Bf6 {[%clk 0:00:02.4]} 34... Bxh6 {[%clk 0:00:10]}
35. Bxh8 {[%clk 0:00:02.5]} 35... Kxh8 {[%clk 0:00:10.9]} 36. Red3 {[%clk
0:00:02.8]} 36... Kg8 {[%clk 0:00:10.4]} 37. Qf6 {[%clk 0:00:02.6]} 37... Bg7
{[%clk 0:00:10.6]} 38. Qe7 {[%clk 0:00:03.2]} 38... Bf8 {[%clk 0:00:10.6]} 39.
Qf6 {[%clk 0:00:03.5]} 39... Rac5 {[%clk 0:00:11.2]} 40. R3d2 {[%clk 0:00:03.7]}
40... Be8 {[%clk 0:00:11.5]} 41. Qa1 {[%clk 0:00:02.9]} 41... R8c7 {[%clk
0:00:11.1]} 42. Qa6 {[%clk 0:00:02.3]} 42... Bg7 {[%clk 0:00:10.3]} 43. Bg2
{[%clk 0:00:01.9]} 43... Na4 {[%clk 0:00:10.6]} 44. Ra2 {[%clk 0:00:01.2]} 44...
Nc3 {[%clk 0:00:10.8]} 45. Raa1 {[%clk 0:00:01.8]} 45... Nxd1 {[%clk 0:00:11]}
46. Rxd1 {[%clk 0:00:02.7]} 46... Bb5 {[%clk 0:00:10.9]} 47. Qa5 {[%clk
0:00:02.5]} 47... Be2 {[%clk 0:00:10]} 48. Qd2 {[%clk 0:00:03.1]} 48... Bxd1
{[%clk 0:00:10.3]} 49. Kh2 {[%clk 0:00:03.7]} 49... Bb3 {[%clk 0:00:10.1]} 0-1